fUSD/lending_fUSD_20240628
["ID","MTS","AMOUNT","RATE_DAILY","PERIOD"]
[330521470,1719558672601,-151.0,0.00019178,2]
[330521471,1719558672610,-1562.78,0.00019178,2]
[330521472,1719558672620,-4773.95,0.00019178,2]
[330521473,1719558672628,-196.03312,0.00019178,2]
[330521474,1719558672637,-500.0,0.00019178,2]
[330521475,1719558672646,-151.0,0.00019178,2]
[330521476,1719558672655,-196.03312,0.00019178,2]
[330521477,1719558672664,-500.0,0.00019178,2]
[330521478,1719558672674,-4565.55,0.00019178,2]
[330521479,1719558672692,-2330.95,0.00019178,2]
[330521480,1719558672705,-8342.35,0.00019178,2]
[330521481,1719558672714,-500.0,0.00019178,2]
[330521482,1719558672723,-196.03312,0.00019178,2]
[330521483,1719558672732,-151.0,0.00019178,2]
[330521484,1719558672741,-2482.63,0.00019178,2]
[330521485,1719558672750,-151.0,0.00019178,2]
[330521486,1719558672761,-151.0,0.00019178,2]
[330521487,1719558672771,-4110.55,0.00019178,2]
[330521488,1719558672781,-5710.96,0.00019178,2]
[330521489,1719558672790,-500.0,0.00019178,2]
[330521490,1719558672800,-209.905183,0.00019178,2]
[330521491,1719558672809,-500.0,0.00019178,2]
[330521492,1719558672818,-554.3,0.00019178,2]
[330521493,1719558672828,-163.108958,0.00019178,2]
[330521494,1719558672837,-500.0,0.00019178,2]
[330521495,1719558672846,-163.108958,0.00019178,2]
[330521496,1719558672855,-500.0,0.00019178,2]
[330521497,1719558672864,-163.108958,0.00019178,2]
[330521498,1719558672873,-163.108958,0.00019178,2]
[330521499,1719558672882,-500.0,0.00019178,2]
[330521500,1719558672891,-1576.76,0.00019178,2]
[330521501,1719558672900,-163.108958,0.00019178,2]
[330521502,1719558672909,-500.0,0.00019178,2]
[330521503,1719558672918,-163.108958,0.00019178,2]
[330521504,1719558672927,-500.0,0.00019178,2]
[330521505,1719558672936,-1798.84,0.00019178,2]
[330521506,1719558672945,-648.92,0.00019178,2]
[330521507,1719558672954,-500.0,0.00019178,2]
[330521508,1719558672963,-500.0,0.00019178,2]
[330521509,1719558672972,-163.108958,0.00019178,2]
[330521510,1719558672981,-163.108958,0.00019178,2]
[330521511,1719558672990,-163.108958,0.00019178,2]
[330521512,1719558672999,-500.0,0.00019178,2]
[330521513,1719558673008,-163.108958,0.00019178,2]
[330521514,1719558673018,-163.108958,0.00019178,2]
[330521515,1719558673027,-2426.82,0.00019178,2]
[330521516,1719558673037,-961.87,0.00019178,2]
[330521517,1719558673048,-163.108958,0.00019178,2]
[330521518,1719558673059,-500.0,0.00019178,2]
[330521519,1719558673070,-1027.55,0.00019178,2]
[330521520,1719558673081,-308.50670229,0.00019178,2]
[330521521,1719558673096,-500.0,0.00019178,2]
[330521522,1719558673105,-3214.15,0.00019178,2]
[330521523,1719558673114,-500.0,0.00019178,2]
[330521524,1719558673123,-500.0,0.00019178,2]
[330521525,1719558673134,-500.0,0.00019178,2]
[330521526,1719558673143,-379.226086,0.00019178,2]
[330521527,1719558673152,-7308.4,0.00019178,2]
[330521528,1719558673164,-1134.36,0.00019178,2]
[330521529,1719558673173,-379.226086,0.00019178,2]
[330521530,1719558673182,-3844.7,0.00019178,2]
[330521531,1719558673191,-379.226086,0.00019178,2]
[330521532,1719558673199,-960.99,0.00019178,2]
[330521533,1719558673208,-18452.9,0.00019178,2]
[330521534,1719558673217,-500.0,0.00019178,2]
[330521535,1719558673226,-379.226086,0.00019178,2]
[330521536,1719558673235,-500.0,0.00019178,2]
[330521537,1719558673244,-379.226086,0.00019178,2]
[330521538,1719558673252,-500.0,0.00019178,2]
[330521539,1719558673261,-379.226086,0.00019178,2]
[330521540,1719558673270,-1144.67,0.00019178,2]
[330521541,1719558673279,-682.19,0.00019178,2]
[330521542,1719558673289,-2247.78,0.00019178,2]
[330521543,1719558673299,-385.2596824,0.00019178,2]
[330521544,1719558673308,-379.226086,0.00019178,2]
[330521545,1719558673317,-379.226086,0.00019178,2]
[330521546,1719558673326,-379.226086,0.00019178,2]
[330521547,1719558673335,-2501.73,0.00019178,2]
[330521548,1719558673344,-1481.62,0.00019178,2]
[330521549,1719558673353,-379.226086,0.00019178,2]
[330521550,1719558673365,-4357.71,0.00019178,2]
[330521551,1719558673374,-379.226086,0.00019178,2]
[330521552,1719558673384,-379.226086,0.00019178,2]
[330521553,1719558673393,-500.0,0.00019178,2]
[330521554,1719558673402,-602.93,0.00019178,2]
[330521555,1719558673411,-500.0,0.00019178,2]
[330521556,1719558673420,-593.29,0.00019178,2]
[330521557,1719558673429,-500.0,0.00019178,2]
[330521558,1719558673440,-1580.53,0.00019178,2]
[330521559,1719558673456,-3842.24,0.00019178,2]
[330521560,1719558673466,-213.095979,0.00019178,2]
[330521561,1719558673475,-213.095979,0.00019178,2]
[330521562,1719558673484,-213.095979,0.00019178,2]
[330521563,1719558673493,-151.0,0.00019178,2]
[330521564,1719558673502,-151.0,0.00019178,2]
[330521565,1719558673511,-151.0,0.00019178,2]
[330521566,1719558673520,-213.095979,0.00019178,2]
[330521567,1719558673530,-151.0,0.00019178,2]
[330521568,1719558673539,-213.095979,0.00019178,2]
[330521569,1719558673548,-213.095979,0.00019178,2]
[330521570,1719558673558,-500.0,0.00019178,2]
[330521571,1719558673567,-163.114884,0.00019178,2]
[330521572,1719558673577,-882.06,0.00019178,2]
[330521573,1719558673586,-500.0,0.00019178,2]
[330521574,1719558673595,-500.0,0.00019178,2]
[330521575,1719558673604,-22571.91,0.00019178,2]
[330521576,1719558673614,-213.095979,0.00019178,2]
[330521577,1719558673623,-213.095979,0.00019178,2]
[330521578,1719558673632,-752.88,0.00019178,2]
[330521579,1719558673642,-500.0,0.00019178,2]
[330521580,1719558673651,-213.095979,0.00019178,2]
[330521581,1719558673660,-500.0,0.00019178,2]
[330521582,1719558673669,-3435.9,0.00019178,2]
[330521583,1719558673678,-213.095979,0.00019178,2]
[330521584,1719558673687,-500.0,0.00019178,2]
[330521585,1719558673696,-213.095979,0.00019178,2]
[330521586,1719558673705,-500.0,0.00019178,2]
[330521587,1719558673714,-213.095979,0.00019178,2]
[330521588,1719558673723,-157.833621,0.00019178,2]
[330521589,1719558673732,-5321.73,0.00019178,2]
[330521590,1719558673741,-881.11,0.00019178,2]
[330521591,1719558673750,-500.0,0.00019178,2]
[330521592,1719558673759,-822.36,0.00019178,2]
[330521593,1719558673770,-500.0,0.00019178,2]
[330521594,1719558673780,-5607.81,0.00019178,2]
[330521595,1719558673791,-500.0,0.00019178,2]
[330521596,1719558673801,-500.0,0.00019178,2]
[330521597,1719558673811,-500.0,0.00019178,2]
[330521598,1719558673820,-500.0,0.00019178,2]
[330521599,1719558673830,-6170.08,0.00019178,2]
[330521600,1719558673840,-151.0,0.00019178,2]
[330521601,1719558673851,-151.0,0.00019178,2]
[330521602,1719558673861,-151.0,0.00019178,2]
[330521603,1719558673871,-172.694804,0.00019178,2]
[330521604,1719558673880,-2775.78,0.00019178,2]
[330521605,1719558673890,-886.61,0.00019178,2]
[330521606,1719558673899,-872.26,0.00019178,2]
[330521607,1719558673909,-500.0,0.00019178,2]
[330521608,1719558673920,-500.0,0.00019178,2]
[330521609,1719558673931,-4543.74,0.00019178,2]
[330521610,1719558673941,-1186.29,0.00019178,2]
[330521611,1719558673951,-598.98,0.00019178,2]
[330521612,1719558673960,-500.0,0.00019178,2]
[330521613,1719558673969,-569.29,0.00019178,2]
[330521614,1719558673979,-500.0,0.00019178,2]
[330521615,1719558673988,-1249.44,0.00019178,2]
[330521616,1719558673998,-500.0,0.00019178,2]
[330521617,1719558674007,-1376.59,0.00019178,2]
[330521618,1719558674017,-903.74,0.00019178,2]
[330521619,1719558674027,-248.307504,0.00019178,2]
[330521620,1719558674036,-881.11,0.00019178,2]
[330521621,1719558674045,-248.307504,0.00019178,2]
[330521622,1719558674054,-881.11,0.00019178,2]
[330521623,1719558674063,-248.307504,0.00019178,2]
[330521624,1719558674077,-881.11,0.00019178,2]
[330521625,1719558674088,-38914.23,0.00019178,2]
[330521626,1719558674098,-248.307504,0.00019178,2]
[330521627,1719558674108,-881.11,0.00019178,2]
[330521628,1719558674119,-7628.99,0.00019178,2]
[330521629,1719558674128,-881.11,0.00019178,2]
[330521630,1719558674140,-248.307504,0.00019178,2]
[330521631,1719558674151,-17630.11,0.00019178,2]
[330521632,1719558674164,-881.11,0.00019178,2]
[330521633,1719558674174,-3362.22,0.00019178,2]
[330521634,1719558674183,-881.11,0.00019178,2]
[330521635,1719558674192,-2500.0,0.00019178,3]
[330521636,1719558674202,-881.11,0.00019178,2]
[330521637,1719558674211,-248.307504,0.00019178,2]
[330521638,1719558674220,-881.11,0.00019178,2]
[330521639,1719558674230,-3717.26,0.00019178,2]
[330521640,1719558674240,-881.11,0.00019178,2]
[330521641,1719558674249,-713.1,0.00019178,2]
[330521642,1719558674258,-881.11,0.00019178,2]
[330521643,1719558674268,-500.0,0.00019178,2]
[330521644,1719558674277,-1142.69,0.00019178,2]
[330521645,1719558674286,-881.11,0.00019178,2]
[330521646,1719558674296,-500.0,0.00019178,2]
[330521647,1719558674306,-248.307504,0.00019178,2]
[330521648,1719558674315,-881.11,0.00019178,2]
[330521649,1719558674325,-248.307504,0.00019178,2]
[330521650,1719558674335,-881.11,0.00019178,2]
[330521651,1719558674344,-248.307504,0.00019178,2]
[330521652,1719558674353,-248.307504,0.00019178,2]
[330521653,1719558674363,-1661.39,0.00019178,2]
[330521654,1719558674373,-881.11,0.00019178,2]
[330521655,1719558674382,-881.11,0.00019178,2]
[330521656,1719558674391,-248.307504,0.00019178,2]
[330521657,1719558674400,-881.11,0.00019178,2]
[330521658,1719558674410,-248.307504,0.00019178,2]
[330521659,1719558674419,-881.11,0.00019178,2]
[330521660,1719558674428,-881.11,0.00019178,2]
[330521661,1719558674438,-1709.03,0.00019178,2]
[330521662,1719558674448,-881.11,0.00019178,2]
[330521663,1719558674459,-600.42,0.00019178,2]
[330521664,1719558674468,-5549.99,0.00019178,2]
[330521665,1719558674477,-881.11,0.00019178,2]
[330521666,1719558674486,-881.11,0.00019178,2]
[330521667,1719558674495,-881.21538488,0.00019178,2]
[330521668,1719558674504,-500.0,0.00019178,2]
[330521669,1719558674513,-500.0,0.00019178,2]
[330521670,1719558674522,-960.62,0.00019178,2]
[330521671,1719558674532,-500.0,0.00019178,2]
[330521672,1719558674541,-681.44,0.00019178,2]
[330521673,1719558674552,-2313.76,0.00019178,2]
[330521674,1719558674563,-500.0,0.00019178,2]
[330521675,1719558674573,-10581.61,0.00019178,2]
[330521676,1719558674585,-500.0,0.00019178,2]
[330521677,1719558674594,-500.0,0.00019178,2]
[330521678,1719558674604,-500.0,0.00019178,2]
[330521679,1719558674615,-4005.8,0.00019178,2]
[330521680,1719558674624,-500.0,0.00019178,2]
[330521681,1719558674633,-2674.14,0.00019178,2]
[330521682,1719558674642,-6603.51,0.00019178,2]
[330521683,1719558674651,-1474.25,0.00019178,2]
[330521684,1719558674660,-1795.69,0.00019178,2]
[330521685,1719558674670,-2302.94,0.00019178,2]
[330521686,1719558674679,-1561.16,0.00019178,2]
[330521687,1719558674688,-500.0,0.00019178,2]
[330521688,1719558674698,-510.71,0.00019178,2]
[330521689,1719558674706,-4497.7,0.00019178,2]
[330521690,1719558674715,-4090.43,0.00019178,2]
[330521691,1719558674725,-1854.88,0.00019178,2]
[330521692,1719558674734,-994.78,0.00019178,2]
[330521693,1719558674743,-1281.95,0.00019178,2]
[330521694,1719558674752,-500.0,0.00019178,2]
[330521695,1719558674763,-500.0,0.00019178,2]
[330521696,1719558674771,-2355.57,0.00019178,2]
[330521697,1719558674781,-3179.524298,0.00019178,2]
[330521698,1719558674790,-2778.54,0.00019178,2]
[330521699,1719558674799,-308.75047665,0.00019178,2]
[330521700,1719558674808,-3179.524298,0.00019178,2]
[330521701,1719558674817,-1541.61,0.00019178,2]
[330521702,1719558674826,-500.0,0.00019178,2]
[330521703,1719558674835,-500.0,0.00019178,2]
[330521704,1719558674844,-2225.47,0.00019178,2]
[330521705,1719558674853,-500.0,0.00019178,2]
[330521706,1719558674862,-3179.524298,0.00019178,2]
[330521707,1719558674872,-3179.524298,0.00019178,2]
[330521708,1719558674881,-3179.524298,0.00019178,2]
[330521709,1719558674890,-3179.524298,0.00019178,2]
[330521710,1719558674900,-772.04,0.00019178,2]
[330521711,1719558674910,-2967.11,0.00019178,2]
[330521712,1719558674919,-151.0,0.00019178,2]
[330521713,1719558674928,-500.0,0.00019178,2]
[330521714,1719558674938,-500.0,0.00019178,2]
[330521715,1719558674948,-500.0,0.00019178,2]
[330521716,1719558674958,-3179.524298,0.00019178,2]
[330521717,1719558674968,-151.0,0.00019178,2]
[330521718,1719558674978,-3179.524298,0.00019178,2]
[330521719,1719558674987,-151.0,0.00019178,2]
[330521720,1719558674997,-3179.524298,0.00019178,2]
[330521721,1719558675007,-151.0,0.00019178,2]
[330521722,1719558675016,-2521.36,0.00019178,2]
[330521723,1719558675027,-3179.524298,0.00019178,2]
[330521724,1719558675037,-151.0,0.00019178,2]
[330521725,1719558675047,-3179.524298,0.00019178,2]
[330521726,1719558675058,-151.0,0.00019178,2]
[330521727,1719558675068,-3179.524298,0.00019178,2]
[330521728,1719558675078,-611.96808753,0.00019178,2]
[330521729,1719558675092,-2830.72,0.00019178,2]
[330521730,1719558675102,-676.28,0.00019178,2]
[330521731,1719558675112,-500.0,0.00019178,2]
[330521732,1719558675123,-1061.24,0.00019178,2]
[330521733,1719558675134,-151.0,0.00019178,2]
[330521734,1719558675144,-2120.89,0.00019178,2]
[330521735,1719558675157,-152.281347,0.00019178,2]
[330521736,1719558675167,-5989.98,0.00019178,2]
[330521737,1719558675178,-500.0,0.00019178,2]
[330521738,1719558675188,-3174.64,0.00019178,2]
[330521739,1719558675198,-500.0,0.00019178,2]
[330521740,1719558675208,-526.55,0.00019178,2]
[330521741,1719558675218,-9688.19,0.00019178,2]
[330521742,1719558675228,-500.0,0.00019178,2]
[330521743,1719558675238,-840.68,0.00019178,2]
[330521744,1719558675247,-500.0,0.00019178,2]
[330521745,1719558675257,-1247.68,0.00019178,2]
[330521746,1719558675267,-500.0,0.00019178,2]
[330521747,1719558675276,-3043.55,0.00019178,2]
[330521748,1719558675286,-500.0,0.00019178,2]
[330521749,1719558675295,-761.47,0.00019178,2]
[330521750,1719558675305,-886.38,0.00019178,2]
[330521751,1719558675314,-500.0,0.00019178,2]
[330521752,1719558675324,-500.0,0.00019178,2]
[330521753,1719558675333,-500.0,0.00019178,2]
[330521754,1719558675343,-500.0,0.00019178,2]
[330521755,1719558675352,-500.0,0.00019178,2]
[330521756,1719558675362,-500.0,0.00019178,2]
[330521757,1719558675373,-500.0,0.00019178,2]
[330521758,1719558675383,-500.0,0.00019178,2]
[330521759,1719558675396,-582.31,0.00019178,2]
[330521760,1719558675406,-3675.64,0.00019178,2]
[330521761,1719558675415,-500.0,0.00019178,2]
[330521762,1719558675425,-520.285749,0.00019178,2]
[330521763,1719558675434,-8732.17,0.00019178,2]
[330521764,1719558675444,-500.0,0.00019178,2]
[330521765,1719558675453,-520.285749,0.00019178,2]
[330521766,1719558675463,-520.285749,0.00019178,2]
[330521767,1719558675473,-520.285749,0.00019178,2]
[330521768,1719558675483,-520.285749,0.00019178,2]
[330521769,1719558675493,-500.0,0.00019178,2]
[330521770,1719558675502,-520.285749,0.00019178,2]
[330521771,1719558675512,-500.0,0.00019178,2]
[330521772,1719558675522,-1059.73,0.00019178,2]
[330521773,1719558675532,-169.43084658,0.00019178,2]
[330521774,1719558675542,-5982.08,0.00019178,2]
[330521775,1719558675552,-28717.77,0.00019178,2]
[330521776,1719558675562,-500.0,0.00019178,2]
[330521777,1719558675572,-500.0,0.00019178,2]
[330521778,1719558675582,-500.0,0.00019178,2]
[330521779,1719558675592,-3165.32,0.00019178,2]
[330521780,1719558675602,-1581.02,0.00019178,2]
[330521781,1719558675612,-1356.22,0.00019178,2]
[330521782,1719558675623,-7069.38,0.00019178,2]
[330521783,1719558675633,-3225.76,0.00019178,2]
[330521784,1719558675643,-520.285749,0.00019178,2]
[330521785,1719558675653,-1492.29,0.00019178,2]
[330521786,1719558675662,-1221.84,0.00019178,2]
[330521787,1719558675672,-520.285749,0.00019178,2]
[330521788,1719558675682,-520.285749,0.00019178,2]
[330521789,1719558675692,-520.285749,0.00019178,2]
[330521790,1719558675702,-664.71,0.00019178,2]
[330521791,1719558675713,-500.0,0.00019178,2]
[330521792,1719558675723,-520.285749,0.00019178,2]
[330521793,1719558675733,-520.285749,0.00019178,2]
[330521794,1719558675743,-1858.57,0.00019178,2]
[330521795,1719558675753,-18198.63,0.00019178,2]
[330521796,1719558675763,-783.9,0.00019178,2]
[330521797,1719558675773,-500.0,0.00019178,2]
[330521798,1719558675784,-511.36,0.00019178,2]
[330521799,1719558675794,-100000.0,0.00019178,2]
[330521800,1719558675803,-668.7,0.00019178,2]
[330521801,1719558675813,-15314.84,0.00019178,2]
[330521802,1719558675822,-1406.94,0.00019178,2]
[330521803,1719558675833,-4518.02,0.00019178,2]
[330521804,1719558675843,-3761.95,0.00019178,2]
[330521805,1719558675852,-509.81,0.00019178,2]
[330521806,1719558675861,-500.0,0.00019178,2]
[330521807,1719558675872,-500.0,0.00019178,2]
[330521808,1719558675882,-500.0,0.00019178,2]
[330521809,1719558675891,-1698.8,0.00019178,2]
[330521810,1719558675901,-500.0,0.00019178,2]
[330521811,1719558675911,-806.26,0.00019178,2]
[330521812,1719558675920,-500.0,0.00019178,2]
[330521813,1719558675930,-19701.35,0.00019178,2]
[330521814,1719558675940,-6822.38,0.00019178,2]
[330521815,1719558675949,-500.0,0.00019178,26]
[330521816,1719558675959,-6118.98,0.00019178,2]
[330521817,1719558675970,-43374.57,0.00019178,2]
[330521818,1719558675980,-19034.38,0.00019178,2]
[330521819,1719558675990,-151.0,0.00019178,2]
[330521820,1719558676000,-12046.15,0.00019178,2]
[330521821,1719558676011,-158.703713,0.00019178,2]
[330521822,1719558676022,-500.0,0.00019178,2]
[330521823,1719558676031,-901.99,0.00019178,2]
[330521824,1719558676041,-500.0,0.00019178,2]
[330521825,1719558676051,-500.0,0.00019178,2]
[330521826,1719558676060,-1866.33,0.00019178,2]
[330521827,1719558676071,-500.0,0.00019178,2]
[330521828,1719558676083,-500.0,0.00019178,2]
[330521829,1719558676094,-500.0,0.00019178,2]
[330521830,1719558676104,-1979.03,0.00019178,2]
[330521831,1719558676114,-151.0,0.00019178,2]
[330521832,1719558676126,-1122.13,0.00019178,2]
[330521833,1719558676136,-151.0,0.00019178,2]
[330521834,1719558676147,-151.0,0.00019178,2]
[330521835,1719558676157,-501.86251722,0.00019178,2]
[330521836,1719558676169,-500.0,0.00019178,2]
[330521837,1719558676180,-2880.3,0.00019178,2]
[330521838,1719558676190,-2957.08,0.00019178,2]
[330521839,1719558676200,-967.6,0.00019178,2]
[330521840,1719558676210,-13219.7,0.00019178,2]
[330521841,1719558676219,-1996.34,0.00019178,2]
[330521842,1719558676229,-500.0,0.00019178,2]
[330521843,1719558676240,-1470.43,0.00019178,2]
[330521844,1719558676250,-279.069784,0.00019178,2]
[330521845,1719558676260,-500.0,0.00019178,2]
[330521846,1719558676270,-930.62,0.00019178,2]
[330521847,1719558676280,-500.0,0.00019178,2]
[330521848,1719558676290,-837.01,0.00019178,2]
[330521849,1719558676300,-500.0,0.00019178,2]
[330521850,1719558676310,-725.41,0.00019178,2]
[330521851,1719558676319,-1036.95,0.00019178,2]
[330521852,1719558676329,-2438.96,0.00019178,2]
[330521853,1719558676339,-500.0,0.00019178,2]
[330521854,1719558676349,-11131.72,0.00019178,2]
[330521855,1719558676358,-8501.39,0.00019178,2]
[330521856,1719558676368,-4107.36,0.00019178,2]
[330521857,1719558676377,-508.31,0.00019178,2]
[330521858,1719558676387,-500.0,0.00019178,2]
[330521859,1719558676397,-614.05,0.00019178,2]
[330521860,1719558676407,-500.0,0.00019178,2]
[330521861,1719558676417,-695.05,0.00019178,2]
[330521862,1719558676428,-151.0,0.00019178,2]
[330521863,1719558676438,-151.0,0.00019178,2]
[330521864,1719558676449,-500.0,0.00019178,2]
[330521865,1719558676459,-151.0,0.00019178,2]
[330521866,1719558676469,-151.0,0.00019178,2]
[330521867,1719558676479,-500.0,0.00019178,2]
[330521868,1719558676490,-500.0,0.00019178,2]
[330521869,1719558676500,-1182.03,0.00019178,2]
[330521870,1719558676509,-1116.82,0.00019178,2]
[330521871,1719558676521,-1198.32,0.00019178,2]
[330521872,1719558676534,-7408.97,0.00019178,2]
[330521873,1719558676544,-3504.83,0.00019178,2]
[330521874,1719558676555,-1182.03,0.00019178,2]
[330521875,1719558676565,-151.0,0.00019178,2]
[330521876,1719558676575,-3576.98,0.00019178,2]
[330521877,1719558676585,-183.63799809,0.00019178,2]
[330521878,1719558676594,-1182.03,0.00019178,2]
[330521879,1719558676604,-500.0,0.00019178,2]
[330521880,1719558676614,-1182.03,0.00019178,2]
[330521881,1719558676625,-1182.03,0.00019178,2]
[330521882,1719558676635,-151.0,0.00019178,2]
[330521883,1719558676645,-1182.03,0.00019178,2]
[330521884,1719558676655,-151.0,0.00019178,2]
[330521885,1719558676665,-1182.03,0.00019178,2]
[330521886,1719558676675,-190.254268,0.00019178,2]
[330521887,1719558676684,-1182.03,0.00019178,2]
[330521888,1719558676694,-1182.03,0.00019178,2]
[330521889,1719558676703,-1182.03,0.00019178,2]
[330521890,1719558676712,-1182.03,0.00019178,2]
[330521891,1719558676721,-1182.03,0.00019178,2]
[330521892,1719558676731,-1182.03,0.00019178,2]
[330521893,1719558676741,-3893.33,0.00019178,2]
[330521894,1719558676751,-1182.03,0.00019178,2]
[330521895,1719558676761,-1182.03,0.00019178,2]
[330521896,1719558676771,-500.0,0.00019178,2]
[330521897,1719558676780,-1182.03,0.00019178,2]
[330521898,1719558676790,-500.0,0.00019178,2]
[330521899,1719558676800,-10459.3,0.00019178,2]
[330521900,1719558676809,-500.0,0.00019178,2]
[330521901,1719558676819,-1182.03,0.00019178,2]
[330521902,1719558676828,-1182.03,0.00019178,2]
[330521903,1719558676838,-1182.03,0.00019178,2]
[330521904,1719558676847,-1182.03,0.00019178,2]
[330521905,1719558676858,-500.0,0.00019178,2]
[330521906,1719558676869,-1182.03,0.00019178,2]
[330521907,1719558676879,-1182.03,0.00019178,2]
[330521908,1719558676888,-1182.03,0.00019178,2]
[330521909,1719558676899,-500.0,0.00019178,2]
[330521910,1719558676910,-1182.06,0.00019178,2]
[330521911,1719558676919,-1129.7,0.00019178,2]
[330521912,1719558676929,-970.09,0.00019178,2]
[330521913,1719558676938,-2771.23,0.00019178,2]
[330521914,1719558676949,-2837.24,0.00019178,2]
[330521915,1719558676958,-151.0,0.00019178,2]
[330521916,1719558676968,-151.0,0.00019178,2]
[330521917,1719558676977,-500.0,0.00019178,2]
[330521918,1719558676987,-2314.53,0.00019178,2]
[330521919,1719558676997,-151.0,0.00019178,2]
[330521920,1719558677007,-151.0,0.00019178,2]
[330521921,1719558677017,-506.49859784,0.00019178,2]
[330521922,1719558677027,-151.0,0.00019178,2]
[330521923,1719558677036,-151.0,0.00019178,2]
[330521924,1719558677046,-151.0,0.00019178,2]
[330521925,1719558677055,-151.0,0.00019178,2]
[330521926,1719558677065,-151.0,0.00019178,2]
[330521927,1719558677077,-151.0,0.00019178,2]
[330521928,1719558677090,-151.0,0.00019178,2]
[330521929,1719558677100,-151.0,0.00019178,2]
[330521930,1719558677109,-151.0,0.00019178,2]
[330521931,1719558677120,-151.0,0.00019178,2]
[330521932,1719558677130,-151.0,0.00019178,2]
[330521933,1719558677141,-151.0,0.00019178,2]
[330521934,1719558677151,-151.0,0.00019178,2]
[330521935,1719558677167,-151.0,0.00019178,2]
[330521936,1719558677177,-151.0,0.00019178,2]
[330521937,1719558677186,-151.0,0.00019178,2]
[330521938,1719558677196,-220.72,0.00019178,2]
[330521939,1719558677206,-250.0,0.00019178,2]
[330521940,1719558677215,-1390.42,0.0001918,2]
[330521941,1719558677226,-1390.42,0.0001918,2]
[330521942,1719558677235,-1390.42,0.0001918,2]
[330521943,1719558677246,-1390.42,0.0001918,2]
[330521944,1719558677256,-1390.42,0.0001918,2]
[330521945,1719558677266,-1390.42,0.0001918,2]
[330521946,1719558677627,-1390.42,0.0001918,2]
[330521947,1719558677636,-1390.42,0.0001918,2]
[330521948,1719558677646,-1390.42,0.0001918,2]
[330521949,1719558677657,-1390.42,0.0001918,2]
[330521950,1719558677666,-150.0,0.00019183,2]
[330521951,1719558677675,-151.1839478,0.00019184,2]
[330521952,1719558677686,-150.0,0.00019184,2]
[330521953,1719558677695,-150.0,0.00019184,2]
[330521954,1719558677703,-201.14506739,0.00019184,2]
[330521955,1719558677712,-152.0,0.00019256,3]
[330521956,1719558677721,-533.11260756,0.00019299,2]
[330521957,1719558677730,-500.0,0.00019314,2]
[330521958,1719558677739,-365.78781787,0.00019389,2]
[330521959,1719558677748,-500.0,0.00019452,2]
[330521960,1719558677757,-500.0,0.00019452,2]
[330521961,1719558677765,-194.3763597,0.00019452,2]
[330521962,1719558677774,-500.0,0.00019452,2]
[330521963,1719558677784,-500.0,0.00019452,2]
[330521964,1719558677794,-500.0,0.00019452,2]
[330521965,1719558677804,-500.0,0.00019452,2]
[330521966,1719558677814,-500.0,0.00019452,2]
[330521967,1719558677823,-500.0,0.00019452,2]
[330521968,1719558677832,-500.0,0.00019452,2]
[330521969,1719558677842,-500.0,0.00019452,2]